Cogmind - Beta 14 @@@ ROGUE MODE // 2024.11.29 @ 23:04:26 Player: UnderDoug Result: Destroyed by D-53 Grenadier with Mini Grenade Launcher Performance ------------- Evolutions (0) 0 Regions Visited (4) 800 Robots Destroyed (20) 100 Value Destroyed (579) 579 Prototype IDs (3) 60 Alien Tech Used (0) 0 Bonus (0) 0 TOTAL SCORE: 1539 Bonus ------- None Cogmind --------- Core Integrity 0/250 Matter 300/300 Energy 100/100 System Corruption 3% Temperature Cool (0) Movement Core (400) Ox7 Location -9/Mines Parts ------- > --- POWER (1) -------- (None) > --- PROPULSION (2) --- (None) > --- UTILITY (2) ------ Large Storage Unit Core Shielding > --- WEAPON (2) ------- Mining Claw > --- INVENTORY (15) --- Ion Engine Aluminum Leg Aluminum Leg Wheel Compact Wheel Medium Storage Unit Tractor Beam EM Pulse Gun Medium Laser Assault Rifle Peak State ------------ > --- POWER ------------ Light Ion Engine > --- PROPULSION ------- Light Treads Light Treads > --- UTILITY ---------- Large Storage Unit Core Shielding > --- WEAPON ----------- Light Cannon Mining Claw > --- INVENTORY -------- Ion Engine Aluminum Leg Aluminum Leg Wheel Compact Wheel Medium Storage Unit Tractor Beam EM Pulse Gun Medium Laser Assault Rifle [Rating: 8] Favorites ----------- Power Light Ion Engine Engine Light Ion Engine Propulsion Light Treads Treads Light Treads Utility Core Shielding Storage Large Storage Unit Protection Core Shielding Weapon Mining Claw Energy Gun EM Pulse Gun Ballistic Gun Assault Rifle Ballistic Cannon Light Cannon Slashing Weapon Mining Claw Build | -11 -10 -10 -10 -9 ------- Run | Yrd Mat Min Exi Min Slots Evolved . | . . . . . Power . | . . . . . Propulsion . | . . . . . Utility . | . . . . . Weapon . | . . . . . Parts Attached 14 | 6 6 1 . 1 Power 3 | 1 1 . . 1 Engine 3 | 1 1 . . 1 Core . | . . . . . Reactor . | . . . . . Propulsion 3 | 2 . 1 . . Treads 3 | 2 . 1 . . Leg . | . . . . . Wheel . | . . . . . Hover . | . . . . . Flight . | . . . . . Utility 4 | 1 3 . . . Device . | . . . . . Storage 2 | 1 1 . . . Processor . | . . . . . Hackware . | . . . . . Protection 2 | . 2 . . . Artifact . | . . . . . Weapon 4 | 2 2 . . . Energy Gun 1 | 1 . . . . Energy Cannon . | . . . . . Ballistic Gun 1 | 1 . . . . Ballistic Cannon 1 | . 1 . . . Launcher . | . . . . . Special Weapon . | . . . . . Impact Weapon . | . . . . . Slashing Weapon 1 | . 1 . . . Piercing Weapon . | . . . . . Special Melee Weapon . | . . . . . Unidentified Prototypes . | . . . . . Parts Lost 6 | . . 1 . 5 Power 2 | . . . . 2 Propulsion 3 | . . 1 . 2 Utility . | . . . . . Weapon 1 | . . . . 1 Highest Loss Streak 5 | . . 1 . 5 To Critical Strikes . | . . . . . Average Slot Usage (%) 98 | . 97 98 100 98 Engine 14 | . 14 14 14 14 Treads 27 | . 28 26 28 27 Storage 14 | . 14 14 14 14 Protection 13 | . 12 14 14 14 Ballistic Gun 1 | . 2 . . . Ballistic Cannon 12 | . 11 14 14 14 Slashing Weapon 13 | . 12 14 14 14 Peak Build Rating 8 | 6 7 8 8 8 Average Rating 7 | 4 6 7 8 7 On Entrance 5 | . 6 7 8 8 Naked Turns . | . . . . . Heaviest Build 29 | 14 29 29 29 29 Greatest Support 40 | 40 40 40 40 40 Greatest Overweight (x) 3 | 3 . 1 . 1 Average Overweight (x) . | . . . . . Largest Inventory Capacity 15 | 8 15 15 15 15 Average Capacity 13 | 7 12 15 15 15 Most Carried 12 | 6 9 11 12 11 Average Carried 9 | 2 8 10 11 10 Final Capacity 15 | 8 15 15 15 15 Final Carried 11 | 6 9 11 11 10 Class Distribution -------------------- 100% | Mutant Dominant Class ---------------- Mutant | -10/Materials Mutant | -10/Mines Mutant | -10/Exiles Mutant | -9/Mines Resources | -11 -10 -10 -10 -9 ----------- Run | Yrd Mat Min Exi Min Matter Collected 595 | 227 278 90 . . Remotely . | . . . . . Salvage Created 497 | . 434 63 . . Parts 30 | . 27 3 . . Haulers Intercepted . | . . . . . Recyclers Shooed 1 | . 1 . . . Parts Field Recycled . | . . . . . Retrieved Matter . | . . . . . Parts Self-Destructed . | . . . . . Prevented . | . . . . . Kills | -11 -10 -10 -10 -9 ------- Run | Yrd Mat Min Exi Min Combat Hostiles Destroyed 17 | . 15 2 . . Guns 2 | . 2 . . . Cannons 15 | . 13 2 . . Classes Destroyed 4 | . 4 . . . Operator 1 | . 1 . . . Watcher 2 | . 2 . . . Swarmer 4 | . 4 . . . Grunt 13 | . 11 2 . . Best Kill Streak 3 | . 3 1 . . Combat Bots Only 3 | . 3 1 . . Max Kills in Single Turn 1 | . 1 1 . . Gunslinging . | . . . . . Exploded . | . . . . . Melee . | . . . . . Uniques/NPCs Destroyed . | . . . . . Combat | -11 -10 -10 -10 -9 -------- Run | Yrd Mat Min Exi Min Hostile Shots Fired 105 | . 73 14 . 18 Missed 27 | . 19 1 . 7 Damage Taken 1039 | . 572 187 . 280 Core 255 | . 172 22 . 61 Absorbed by Shields . | . . . . . Redirected to Shielding 33 | . 18 4 . 11 Regen/Repaired (Parts) 36 | . 36 . . . Core Remaining (%) 100 | 100 . . . . Volleys Fired 63 | . 56 7 . . Largest 2 | . 2 1 . . Hottest 60 | . 60 35 . . Shots Fired 69 | . 60 9 . . Gun 14 | . 14 . . . Cannon 55 | . 46 9 . . Launcher . | . . . . . Special . | . . . . . Kinetic 65 | . 56 9 . . Thermal . | . . . . . Explosive . | . . . . . Electromagnetic 4 | . 4 . . . Robot Hit Streak 8 | . 8 4 . . Robot Miss Streak 2 | . 2 2 . . Penetration Max . | . . . . . Secondary Targets . | . . . . . Shots Hit Robots 48 | . 43 5 . . Core Hits 24 | . 21 3 . . Critical Kills . | . . . . . Critical Parts Destroyed . | . . . . . Critical Strikes 2 | . 2 . . . Blast 2 | . 2 . . . Melee Attacks . | . . . . . Impact . | . . . . . Slashing . | . . . . . Piercing . | . . . . . Sneak Attacks . | . . . . . Combat Hostiles . | . . . . . Follow-up Attacks . | . . . . . Damage Inflicted 893 | . 802 91 . . Guns 139 | . 139 . . . Cannons 661 | . 570 91 . . Explosions 93 | . 93 . . . Melee . | . . . . . Ramming . | . . . . . Kinetic 749 | . 658 91 . . Thermal 93 | . 93 . . . Explosive . | . . . . . Electromagnetic 51 | . 51 . . . Impact . | . . . . . Slashing . | . . . . . Piercing . | . . . . . Highest Corruption 3 | . 3 3 3 3 Average Corruption 2 | . 2 3 3 3 Corruption Purged . | . . . . . Corruption Blocked . | . . . . . Effects 24 | . 4 9 10 1 Message Errors 5 | . 1 1 3 . Matter Fused 5 | . . 3 2 . Heat Flow Errors 3 | . . 2 1 . Energy Discharges 4 | . 1 1 1 1 Data Loss (minor) 5 | . 2 . 3 . Misfires 2 | . . 2 . . Overload Shots . | . . . . . Overflow Damage 4 | . 4 . . . Projectiles 4 | . 4 . . . Explosions . | . . . . . Melee . | . . . . . Knockbacks 11 | . 9 2 . . Impact . | . . . . . Kinetic 11 | . 9 2 . . Secondary . | . . . . . Self-Inflicted Damage 46 | . 46 . . . Shots 1 | . 1 . . . Rammed . | . . . . . Targets Rammed . | . . . . . Kicked . | . . . . . Crushed . | . . . . . Highest Temperature 275 | . 36 154 275 2 Average Temperature 53 | . 9 55 142 2 Received Heat Transfer 293 | . 162 111 . 20 Siege Activations . | . . . . . Robots Corrupted . | . . . . . Combat Hostiles . | . . . . . Parts Fried . | . . . . . Impact Corruptions . | . . . . . Robots Melted . | . . . . . Combat Hostiles . | . . . . . Parts Melted . | . . . . . Heat Transferred 100 | . 100 . . . Parts Sabotaged . | . . . . . Parts Stolen . | . . . . . Parts Stripped . | . . . . . Power Chain Reactions 1 | . 1 . . . Alert | -11 -10 -10 -10 -9 ------- Run | Yrd Mat Min Exi Min Peak Influence 191 | . 191 58 . . Initial 18 | . . 18 . . Average 50 | . 73 24 . . Maximum Alert Level . | . . . . . Low Security (%) 100 | 100 100 100 . 100 Level 1 . | . . . . . Level 2 . | . . . . . Level 3 . | . . . . . Level 4 . | . . . . . Level 5 . | . . . . . High Security . | . . . . . Max Security . | . . . . . Squads Dispatched 4 | . 4 . . . Investigation 3 | . 3 . . . Extermination . | . . . . . Reinforcement 1 | . 1 . . . Assault . | . . . . . Garrison . | . . . . . Intercept . | . . . . . Searches Triggered . | . . . . . Construction Impeded . | . . . . . Haulers Reinforced . | . . . . . Active Scanning Responses . | . . . . . Cargo Convoy Interrupts . | . . . . . Stealth | -11 -10 -10 -10 -9 --------- Run | Yrd Mat Min Exi Min Distress Signals 1 | . 1 . . . Communications Jammed . | . . . . . Distress Signals . | . . . . . Times Spotted 44 | . 21 2 . 21 Peak Tracking Total 21 | . 4 2 . 21 Tactical Retreats . | . . . . . Traps | -11 -10 -10 -10 -9 ------- Run | Yrd Mat Min Exi Min Traps Triggered 3 | . 3 . . . Indirectly . | . . . . . Trap Hack Attempts . | . . . . . Triggered . | . . . . . Disarmed . | . . . . . Reprogrammed . | . . . . . Reused . | . . . . . Traps Extracted . | . . . . . Installed . | . . . . . Triggered . | . . . . . Machines | -11 -10 -10 -10 -9 ---------- Run | Yrd Mat Min Exi Min Machines Disabled 1 | . . 1 . . Max in Single Turn 1 | . . 1 . . Machines Repaired . | . . . . . Machines Dismantled . | . . . . . Machines Sabotaged . | . . . . . Overloaded Fab Kills . | . . . . . Hacking | -11 -10 -10 -10 -9 --------- Run | Yrd Mat Min Exi Min Machines Accessed 12 | . 8 . 4 . Terminals 7 | . 7 . . . Fabricators . | . . . . . Repair Stations 1 | . 1 . . . Recycling Units . | . . . . . Scanalyzers . | . . . . . Garrison Access . | . . . . . Total Hacks 25 | . 21 . 4 . Successful 15 | . 11 . 4 . Failed 10 | . 10 . . . Catastrophic 3 | . 3 . . . Database Lockouts . | . . . . . Manual 1 | . . . 1 . Terminals 18 | . 18 . . . Fabricators . | . . . . . Repair Stations 3 | . 3 . . . Recycling Units . | . . . . . Scanalyzers . | . . . . . Garrison Access . | . . . . . Terminal Hacks 13 | . 9 . 4 . Record 4 | . . . 4 . Robot Analysis 2 | . 2 . . . Prototype ID Bank 2 | . 2 . . . Emergency Access Points 1 | . 1 . . . Alert Level 1 | . 1 . . . Locate Traps 2 | . 2 . . . Zone Layout 1 | . 1 . . . Fabricator Hacks . | . . . . . Repair Station Hacks 2 | . 2 . . . Scan Component 1 | . 1 . . . Repair 1 | . 1 . . . Recycling Unit Hacks . | . . . . . Scanalyzer . | . . . . . Garrison Access Hacks . | . . . . . Unauthorized Hacks . | . . . . . Terminals . | . . . . . Fabricators . | . . . . . Repair Stations . | . . . . . Recycling Units . | . . . . . Scanalyzers . | . . . . . Garrison Access . | . . . . . Data Cores Recovered 1 | . 1 . . . Used . | . . . . . Hacking Detections 7 | . 7 . . . Full Trace Events 4 | . 4 . . . Feedback Events . | . . . . . Feedback Blocked . | . . . . . Robot Schematics Acquired . | . . . . . Robots Built . | . . . . . Authchips . | . . . . . Time . | . . . . . Total Robot Build Rating . | . . . . . Part Schematics Acquired . | . . . . . Parts Built . | . . . . . Authchips . | . . . . . Time . | . . . . . Total Part Build Rating . | . . . . . Parts Repaired 1 | . 1 . . . Time 26 | . 26 . . . Parts Recycled . | . . . . . Recycled Matter . | . . . . . Retrieved Matter . | . . . . . Retrieved Components . | . . . . . Parts Scanalyzed . | . . . . . Part Schematics Acquired . | . . . . . Parts Damaged . | . . . . . Bothacking | -11 -10 -10 -10 -9 ------------ Run | Yrd Mat Min Exi Min Used RIF Installer . | . . . . . Robots Hacked . | . . . . . Non-combat . | . . . . . Combat . | . . . . . Robot Hacks Applied . | . . . . . Relay Couplers Released . | . . . . . Fabnet Peak Effective % . | . . . . . Robots Rewired . | . . . . . Allies Hacked . | . . . . . Hacks Repelled . | . . . . . Allies | -11 -10 -10 -10 -9 -------- Run | Yrd Mat Min Exi Min Total Allies . | . . . . . Largest Group . | . . . . . Highest-Rated Group . | . . . . . Highest-Rated Ally . | . . . . . Total Orders . | . . . . . Ally Attacks . | . . . . . Total Damage . | . . . . . Kills . | . . . . . Allies Corrupted . | . . . . . Allies Melted . | . . . . . Intel | -11 -10 -10 -10 -9 ------- Run | Yrd Mat Min Exi Min Robot Analysis Total 2 | . 2 . . . Derelict Logs Recovered 1 | . . 1 . . Drone Launches . | . . . . . Drone Recoveries . | . . . . . Exploration | -11 -10 -10 -10 -9 ------------- Run | Yrd Mat Min Exi Min Turns Passed 2774 | 99 1200 587 746 142 Spaces Moved 1533 | 54 606 328 466 79 Core 9 | 9 . . . . Treads 1524 | 45 606 328 466 79 Legs . | . . . . . Wheels . | . . . . . Hover . | . . . . . Flight . | . . . . . Fastest Speed 50 | 50 160 160 160 160 Average Speed 160 | 157 160 163 160 163 Slowest Speed 240 | 200 160 240 160 240 Overloaded Moves . | . . . . . Propulsion Burnouts . | . . . . . Robots Hopped . | . . . . . Cave-ins Triggered . | . . . . . Exploration Rate (%) 59 | 5 93 81 90 29 Regions Visited 4 Branch Regions 3 Pre-discovered Areas 1 | . . 1 . . Known Exits Taken . | . . . . . Unknown Exits Taken 4 | 1 1 1 1 . Scrap Searched 1 | . . 1 . . Spaces Dug . | . . . . . Terrain Destroyed 5 | . 5 . . . Melee . | . . . . . Projectile . | . . . . . AOE 5 | . 5 . . . Terrain Rammed . | . . . . . Walls Destroyed . | . . . . . Machines Disabled . | . . . . . Actions | -11 -10 -10 -10 -9 --------- Run | Yrd Mat Min Exi Min Total 1771 | 65 776 371 467 92 Wait 148 | . 103 33 . 12 Move 1529 | 53 605 327 465 79 Hop . | . . . . . Pick Up 14 | 6 4 3 1 . Fast Attach 7 | 6 1 . . . Attach 3 | . 1 1 . 1 Detach . | . . . . . Swap 4 | . 4 . . . Drop 3 | . 2 . 1 . Fire 63 | . 56 7 . . Melee . | . . . . . Ram . | . . . . . Kick . | . . . . . Crush . | . . . . . Escape Stasis . | . . . . . Rewire . | . . . . . Trap . | . . . . . Miscellaneous . | . . . . . Route ------- -11/Scrapyard -10/Materials (discovered 5 exits: [*Mat x3] / [*Min x2]) -10/Mines (discovered 2 exits: [*Mat] / *Exi) -10/Exiles -9/Mines History --------- Turn | Location | Event 16 | -11/Scrapyard | Discovered new exit (range 15) 100 | -11/Scrapyard | Entered Materials 317 | -10/Materials | Build established: Mutant 497 | -10/Materials | Repaired Core Shielding 530 | -10/Materials | Discovered new exit (range 6) 610 | -10/Materials | Discovered new exit (range 9) 739 | -10/Materials | Core integrity fell below 50% 814 | -10/Materials | Discovered new exit (range 15) 1000 | -10/Materials | Derelicts attacked the area 1027 | -10/Materials | Discovered new exit (range 8) 1041 | -10/Materials | Discovered new exit (range 10) 1300 | -10/Materials | Entered Mines 1815 | -10/Mines | Discovered new exit (range 11) 1879 | -10/Mines | Deemed a non-threat by the Exiles lab entrance 1880 | -10/Mines | Discovered new exit (range 5) 1887 | -10/Mines | Entered Exiles 1887 | -10/Exiles | Found Exiles lab abandoned 2612 | -10/Exiles | Discovered new exit (range 14) 2633 | -10/Exiles | Entered Mines 2695 | -9/Mines | Met a Derelict bent on vengeance 2743 | -9/Mines | Assembled infested the area 2762 | -9/Mines | Core integrity fell below 20% 2775 | -9/Mines | Destroyed by D-53 Grenadier with Mini Grenade Launcher Last Messages --------------- as-33617 destroyed. as-40284 destroyed. as-50180 destroyed. as-46163 destroyed. as-79566 destroyed. Lgt. Treads destroyed. as-72657 destroyed. as-06579 destroyed. as-79852 destroyed. as-99173 destroyed. as-20436 destroyed. as-79670 destroyed. as-93461 destroyed. as-21538 destroyed. as-41957 destroyed. as-70168 destroyed. Lgt. Cannon destroyed. as-74860 destroyed. Lgt. Ion Engine destroyed. Lgt. Treads destroyed. Map ----- +----------------------------------------------------+ | ?????????????????????????????????????????????????? | | ?????????????????????????????????????????????????? | | ?????????????????????????????????????????????????? | | ?????????????????????????????????????????????????? | | ?????????????????????????????????????????????????? | | ?????????????????????????????????????????????????? | | ?????????????????????????????????????????????????? | | ?????????????????????????????????????????????????? | | ?????????????????????????????????????????????????? | | ?????????????????????????????????????????????????? | | ???????????????????????????? ???????????????????? | | ???????????????????????????? ??????????????????? | | ??????????????????????????? #?????????????????? | | ??????????????????????????? % #?????????????????? | | ??????????????# ??????????? ##????????????????? | | ?????????????? ?????????? #????????????????? | | ?????????????? ?????????# ##???????????????? | | ?????????????# ??????????# dd #????? #????????? | | ??#?????????## ?????????## #??? ????????? | | ?? ???????### ????????## =%! #?? ?????????? | | ?? ??????## ????????# = ## ???????? | | ?? ??????# ????????# ???????? | | ?# ??????# #????????# # ???????? | | ? #??????# ##???????# #?????????? | | ?# #?????## ####?#### #??????????? | | ?# ####### ### @a #??????????? | | ?# ? t ## #??????????? | | ?# #????# ## a% #?????????? | | ?# #?????# ######## #????????? | | ?# #?????## #??????? a ?????? | | ## #####??## ##????????# #### ???? | | ## ##?## #??????????####????? ????? | | ## # ### #??????????????????????? ????? | | ## ##????????????????????????????? | | # ## ###??????????????????????????? | | # #### ###????????????????????????? | | # #??# #????????????????????????? | | # ##??## #????????????????????????? | | ## ######????## ###????????????????????????? | | ?#####??????????#######??????????????????????????? | | ?????????????????????????????????????????????????? | | ?????????????????????????????????????????????????? | | ?????????????????????????????????????????????????? | | ?????????????????????????????????????????????????? | | ?????????????????????????????????????????????????? | | ?????????????????????????????????????????????????? | | ?????????????????????????????????????????????????? | | ?????????????????????????????????????????????????? | | ?????????????????????????????????????????????????? | | | +----------------------------------------------------+ Best States ------------- Heat Dissipation 25 Energy Generation 10 Energy Capacity 250 Matter Stores 300 Matter Capacity 300 Sight Range 16 Terrain Scan Density 10 Core Shielding 20 Evasion (%) 40 Recoil Reduction 2 Item Schematics ----------------- None Robot Schematics ------------------ None Fabricated ------------ Nothing Alien Tech Used ----------------- None Achievements -------------- Hunted Challenges ------------ None Game ------ Seed ForceCoreInjector Manual? 0 Play Time 00:22:43 Cumulative 11.4 hours Start 2024.11.29 @ 22:36:52 End 2024.11.29 @ 23:04:26 Sessions 1 Manual Loads 0 Difficulty Rogue Special Mode None Game No. 13 Rogue 13 Adventurer 0 Explorer 0 Win Type - Total 0 Types 0/0/0/0/0/0/0/0/0 Lore% 8 Gallery% 15 Achievement% 16 Wizard Run 0 Options --------- Layout 1 ASCII 0 Keyboard 0 Movement Mouse Keybinds 0 Fullscreen 2 Font 24/Tamsyn Map View 50x35 Zoom Use 0% Tactical HUD 0 Map Filters NONE Filters NONE Steam 0 RUN: 6abbf190-4c70-4f89-98b0-e3b1ecda70da